fUST/lending_fUST_20250727
["ID","MTS","AMOUNT","RATE_DAILY","PERIOD"]
[375286649,1753617061831,-460.0,0.00020821,2]
[375286650,1753617061840,-460.0,0.00020821,2]
[375286651,1753617061849,-523.18822385,0.00020821,2]
[375286652,1753617061859,-460.0,0.00020821,2]
[375286653,1753617061868,-581.49,0.00020821,2]
[375286654,1753617061877,-460.0,0.00020821,2]
[375286655,1753617061887,-460.0,0.00020821,2]
[375286656,1753617061896,-460.0,0.00020821,2]
[375286657,1753617061906,-460.0,0.00020821,2]
[375286658,1753617061915,-460.0,0.00020821,2]
[375286659,1753617061925,-502.66,0.00020821,2]
[375286660,1753617061934,-475.73,0.00020821,2]
[375286661,1753617061944,-460.0,0.00020821,2]
[375286662,1753617061954,-460.0,0.00020821,2]
[375286663,1753617061964,-460.0,0.00020821,2]
[375286664,1753617061974,-460.0,0.00020821,2]
[375286665,1753617061984,-460.0,0.00020821,2]
[375286666,1753617061994,-460.0,0.00020821,2]
[375286667,1753617062004,-460.0,0.00020821,2]
[375286668,1753617062013,-460.0,0.00020821,2]
[375286669,1753617062023,-460.0,0.00020821,2]
[375286670,1753617062033,-460.0,0.00020821,2]
[375286671,1753617062043,-460.0,0.00020821,2]
[375286672,1753617062052,-460.0,0.00020821,2]
[375286673,1753617062062,-460.0,0.00020821,2]
[375286674,1753617062071,-687.36,0.00020821,2]
[375286675,1753617062080,-1494.55,0.00020821,2]
[375286676,1753617062090,-460.0,0.00020821,2]
[375286677,1753617062099,-151.0,0.00020821,2]
[375286678,1753617062108,-151.0,0.00020821,2]
[375286679,1753617062117,-602.63,0.00020821,2]
[375286680,1753617062127,-460.0,0.00020821,2]
[375286681,1753617062136,-460.0,0.00020821,2]
[375286682,1753617062145,-460.0,0.00020821,2]
[375286683,1753617062155,-460.0,0.00020821,2]
[375286684,1753617062164,-460.0,0.00020821,2]
[375286685,1753617062174,-262.04817577,0.00020821,2]
[375286686,1753617062183,-151.0,0.00020821,2]
[375286687,1753617062192,-460.0,0.00020821,2]
[375286688,1753617062202,-460.0,0.00020821,2]
[375286689,1753617062211,-460.0,0.00020821,2]
[375286690,1753617062220,-460.0,0.00020821,2]
[375286691,1753617062229,-460.0,0.00020821,2]
[375286692,1753617062238,-151.0,0.00020821,2]
[375286693,1753617062248,-460.0,0.00020821,2]
[375286694,1753617062257,-1433.41,0.00020821,2]
[375286695,1753617062266,-460.0,0.00020821,2]
[375286696,1753617062276,-460.0,0.00020821,2]
[375286697,1753617062285,-460.0,0.00020821,2]
[375286698,1753617062295,-460.0,0.00020821,2]
[375286699,1753617062304,-460.0,0.00020821,2]
[375286700,1753617062314,-460.0,0.00020821,2]
[375286701,1753617062323,-3670.15,0.00020821,2]
[375286702,1753617062333,-667.98,0.00020821,2]
[375286703,1753617062348,-151.0,0.00020821,2]
[375286704,1753617062360,-1015.9,0.00020821,2]
[375286705,1753617062369,-499.9,0.00020821,2]
[375286706,1753617062378,-2545.35,0.00020821,2]
[375286707,1753617062390,-532.42,0.00020821,2]
[375286708,1753617062399,-460.0,0.00020821,2]
[375286709,1753617062408,-612.11,0.00020821,2]
[375286710,1753617062418,-460.0,0.00020821,2]
[375286711,1753617062429,-1128.98,0.00020821,2]
[375286712,1753617062448,-564.54,0.00020821,2]
[375286713,1753617062460,-460.0,0.00020821,2]
[375286714,1753617062470,-1594.92,0.00020821,2]
[375286715,1753617062480,-813.34,0.00020821,2]
[375286716,1753617062490,-460.0,0.00020821,2]
[375286717,1753617062500,-460.0,0.00020821,2]
[375286718,1753617062511,-837.67,0.00020821,2]
[375286719,1753617062522,-927.122458,0.00020821,2]
[375286720,1753617062531,-460.0,0.00020821,2]
[375286721,1753617062541,-460.0,0.00020821,2]
[375286722,1753617062551,-927.122458,0.00020821,2]
[375286723,1753617062560,-460.0,0.00020821,2]
[375286724,1753617062570,-460.0,0.00020821,2]
[375286725,1753617062580,-460.0,0.00020821,2]
[375286726,1753617062590,-2138.03,0.00020821,2]
[375286727,1753617062600,-482.34,0.00020821,2]
[375286728,1753617062611,-460.0,0.00020821,2]
[375286729,1753617062620,-460.0,0.00020821,2]
[375286730,1753617062630,-460.0,0.00020821,2]
[375286731,1753617062640,-460.0,0.00020821,2]
[375286732,1753617062650,-460.0,0.00020821,2]
[375286733,1753617062660,-460.0,0.00020821,2]
[375286734,1753617062670,-460.0,0.00020821,2]
[375286735,1753617062680,-460.0,0.00020821,2]
[375286736,1753617062689,-460.0,0.00020821,2]
[375286737,1753617062700,-1503.06,0.00020821,2]
[375286738,1753617062710,-460.0,0.00020821,2]
[375286739,1753617062720,-460.0,0.00020821,2]
[375286740,1753617062730,-460.0,0.00020821,2]
[375286741,1753617062740,-460.0,0.00020821,2]
[375286742,1753617062750,-460.0,0.00020821,2]
[375286743,1753617062760,-511.88,0.00020821,2]
[375286744,1753617062770,-1723.24,0.00020821,2]
[375286745,1753617062780,-460.0,0.00020821,2]
[375286746,1753617062790,-460.0,0.00020821,2]
[375286747,1753617062811,-460.0,0.00020821,2]
[375286748,1753617062822,-1570.77,0.00020821,2]
[375286749,1753617062832,-1731.71,0.00020821,2]
[375286750,1753617062945,-593.58,0.00020821,2]
[375286751,1753617062955,-460.0,0.00020821,2]
[375286752,1753617062964,-1221.5,0.00020821,2]
[375286753,1753617062973,-460.0,0.00020821,2]
[375286754,1753617062983,-460.0,0.00020821,2]
[375286755,1753617062992,-460.0,0.00020821,2]
[375286756,1753617063000,-534.28313914,0.00020822,2]
[375286757,1753617063009,-151.0,0.00020843,2]
[375286758,1753617063019,-183.258394,0.00020843,2]
[375286759,1753617063028,-151.0,0.00020843,2]
[375286760,1753617063038,-151.0,0.00020843,2]
[375286761,1753617063048,-151.0,0.00020843,2]
[375286762,1753617063057,-980.5484476,0.00020868,2]
[375286763,1753617063067,-2463.31883367,0.00020934,4]
[375286764,1753617063077,-500.0,0.00021064,2]
[375286765,1753617063086,-598.0,0.00021095,2]
[375286766,1753617063096,-460.0,0.00021095,2]
[375286767,1753617063106,-968.52,0.00021095,2]
[375286768,1753617063115,-460.0,0.00021095,2]
[375286769,1753617063125,-711.41,0.00021095,2]
[375286770,1753617063136,-460.0,0.00021095,2]
[375286771,1753617063146,-460.0,0.00021095,2]
[375286772,1753617063156,-460.0,0.00021095,2]
[375286773,1753617063166,-460.0,0.00021095,2]
[375286774,1753617063176,-460.0,0.00021095,2]
[375286775,1753617063186,-581.49,0.00021095,2]
[375286776,1753617063196,-460.0,0.00021095,2]
[375286777,1753617063206,-460.0,0.00021095,2]
[375286778,1753617063216,-460.0,0.00021095,2]
[375286779,1753617063225,-460.0,0.00021095,2]
[375286780,1753617063236,-460.0,0.00021095,2]
[375286781,1753617063246,-502.66,0.00021095,2]
[375286782,1753617063256,-475.73,0.00021095,2]
[375286783,1753617063266,-460.0,0.00021095,2]
[375286784,1753617063276,-460.0,0.00021095,2]
[375286785,1753617063285,-460.0,0.00021095,2]
[375286786,1753617063296,-460.0,0.00021095,2]
[375286787,1753617063305,-151.0,0.00021095,2]
[375286788,1753617063316,-460.0,0.00021095,2]
[375286789,1753617063327,-460.0,0.00021095,2]
[375286790,1753617063336,-460.0,0.00021095,2]
[375286791,1753617063350,-460.0,0.00021095,2]
[375286792,1753617063360,-460.0,0.00021095,2]
[375286793,1753617063370,-460.0,0.00021095,2]
[375286794,1753617063379,-460.0,0.00021095,2]
[375286795,1753617063390,-460.0,0.00021095,2]
[375286796,1753617063399,-687.36,0.00021095,2]
[375286797,1753617063409,-460.0,0.00021095,2]
[375286798,1753617063419,-1494.55,0.00021095,2]
[375286799,1753617063429,-460.0,0.00021095,2]
[375286800,1753617063439,-176.31376006,0.00021095,2]
[375286801,1753617063449,-460.0,0.00021095,2]
[375286802,1753617063458,-460.0,0.00021095,2]
[375286803,1753617063468,-460.0,0.00021095,2]
[375286804,1753617063478,-460.0,0.00021095,2]
[375286805,1753617063488,-460.0,0.00021095,2]
[375286806,1753617063497,-460.0,0.00021095,2]
[375286807,1753617063506,-460.0,0.00021095,2]
[375286808,1753617063517,-460.0,0.00021095,2]
[375286809,1753617063527,-460.0,0.00021095,2]
[375286810,1753617063536,-1433.41,0.00021095,2]
[375286811,1753617063547,-460.0,0.00021095,2]
[375286812,1753617063556,-460.0,0.00021095,2]
[375286813,1753617063567,-460.0,0.00021095,2]
[375286814,1753617063577,-460.0,0.00021095,2]
[375286815,1753617063589,-460.0,0.00021095,2]
[375286816,1753617063599,-3670.15,0.00021095,2]
[375286817,1753617063609,-667.98,0.00021095,2]
[375286818,1753617063619,-1015.9,0.00021095,2]
[375286819,1753617063628,-499.9,0.00021095,2]
[375286820,1753617063638,-2545.35,0.00021095,2]
[375286821,1753617063647,-532.42,0.00021095,2]
[375286822,1753617063658,-460.0,0.00021095,2]
[375286823,1753617063668,-612.11,0.00021095,2]
[375286824,1753617063679,-460.0,0.00021095,2]
[375286825,1753617063689,-1128.98,0.00021095,2]
[375286826,1753617063700,-564.54,0.00021095,2]
[375286827,1753617063711,-1594.92,0.00021095,2]
[375286828,1753617063721,-460.0,0.00021095,2]
[375286829,1753617063731,-813.34,0.00021095,2]
[375286830,1753617063741,-460.0,0.00021095,2]
[375286831,1753617063750,-460.0,0.00021095,2]
[375286832,1753617063760,-837.67,0.00021095,2]
[375286833,1753617063770,-460.0,0.00021095,2]
[375286834,1753617063780,-460.0,0.00021095,2]
[375286835,1753617063790,-460.0,0.00021095,2]
[375286836,1753617063800,-460.0,0.00021095,2]
[375286837,1753617063810,-460.0,0.00021095,2]
[375286838,1753617063821,-2138.03,0.00021095,2]
[375286839,1753617063832,-482.34,0.00021095,2]
[375286840,1753617063843,-446.48484517,0.00021095,2]
[375286841,1753617063854,-460.0,0.00021095,2]
[375286842,1753617063864,-460.0,0.00021095,2]
[375286843,1753617063873,-460.0,0.00021095,2]
[375286844,1753617063882,-460.0,0.00021095,2]
[375286845,1753617063892,-460.0,0.00021095,2]
[375286846,1753617063902,-460.0,0.00021095,2]
[375286847,1753617063912,-460.0,0.00021095,2]
[375286848,1753617063921,-1503.06,0.00021095,2]
[375286849,1753617063931,-470.66558451,0.00021095,2]
[375286850,1753617063940,-460.0,0.00021095,2]
[375286851,1753617063950,-460.0,0.00021095,2]
[375286852,1753617063960,-460.0,0.00021095,2]
[375286853,1753617063969,-460.0,0.00021095,2]
[375286854,1753617063979,-511.88,0.00021095,2]
[375286855,1753617063988,-1723.24,0.00021095,2]
[375286856,1753617063997,-460.0,0.00021095,2]
[375286857,1753617064007,-460.0,0.00021095,2]
[375286858,1753617064016,-460.0,0.00021095,2]
[375286859,1753617064026,-1570.77,0.00021095,2]
[375286860,1753617064036,-1731.71,0.00021095,2]
[375286861,1753617064046,-593.58,0.00021095,2]
[375286862,1753617064056,-460.0,0.00021095,2]
[375286863,1753617064066,-1221.5,0.00021095,2]
[375286864,1753617064076,-460.0,0.00021095,2]
[375286865,1753617064086,-360.0,0.00021096,2]
[375286866,1753617064095,-2000.0,0.00021116,2]
[375286867,1753617064105,-697.55022164,0.00021116,2]
[375286868,1753617064114,-2463.31883367,0.00021141,4]
[375286869,1753617064124,-904.418,0.00021193,2]
[375286870,1753617064133,-2463.31883367,0.00021348,5]
[375286871,1753617064143,-25000.0,0.00021353,2]
[375286872,1753617064153,-151.0,0.00021353,2]
[375286873,1753617064162,-151.0,0.00021353,2]
[375286874,1753617064172,-151.0,0.00021353,2]
[375286875,1753617064182,-151.0,0.00021353,2]
[375286876,1753617064192,-151.0,0.00021353,2]
[375286877,1753617064201,-151.0,0.00021353,2]
[375286878,1753617064211,-151.0,0.00021353,2]
[375286879,1753617064221,-3801.642,0.00021353,2]
[375286880,1753617064230,-502.05411089,0.00021353,2]
[375286881,1753617064240,-151.0,0.00021353,2]
[375286882,1753617064250,-151.0,0.00021353,2]
[375286883,1753617064331,-6536.16983842,0.00021353,2]
[375286884,1753617064341,-151.0,0.00021353,2]
[375286885,1753617064354,-164.544173,0.00021353,2]
[375286886,1753617064363,-151.0,0.00021353,2]
[375286887,1753617064373,-151.0,0.00021353,2]
[375286888,1753617064383,-151.0,0.00021353,2]
[375286889,1753617064393,-151.0,0.00021353,2]
[375286890,1753617064404,-151.0,0.00021353,2]
[375286891,1753617064413,-151.0,0.00021353,2]
[375286892,1753617064423,-151.0,0.00021353,2]
[375286893,1753617064434,-151.0,0.00021353,2]
[375286894,1753617064445,-151.0,0.00021353,2]
[375286895,1753617064455,-151.0,0.00021353,2]
[375286896,1753617064464,-151.0,0.00021353,2]
[375286897,1753617064474,-151.0,0.00021353,2]
[375286898,1753617064485,-291.18913902,0.00021353,2]
[375286899,1753617064494,-151.0,0.00021353,2]
[375286900,1753617064504,-151.0,0.00021353,2]
[375286901,1753617064514,-151.0,0.00021353,2]
[375286902,1753617064524,-151.0,0.00021353,2]
[375286903,1753617064535,-151.0,0.00021353,2]
[375286904,1753617064544,-151.0,0.00021353,2]
[375286905,1753617064555,-151.0,0.00021353,2]
[375286906,1753617064565,-151.0,0.00021353,2]
[375286907,1753617064577,-151.0,0.00021353,2]
[375286908,1753617064588,-151.0,0.00021353,2]
[375286909,1753617064598,-151.0,0.00021353,2]
[375286910,1753617064609,-151.0,0.00021353,2]
[375286911,1753617064619,-151.0,0.00021353,2]
[375286912,1753617064628,-151.0,0.00021353,2]
[375286913,1753617064638,-270.27902396,0.00021353,2]
[375286914,1753617064649,-151.0,0.00021353,2]
[375286915,1753617064659,-151.0,0.00021353,2]
[375286916,1753617064669,-151.0,0.00021353,2]
[375286917,1753617064679,-1055.70914613,0.00021364,2]
[375286918,1753617064689,-460.0,0.00021369,2]
[375286919,1753617064698,-968.52,0.00021369,2]
[375286920,1753617064709,-460.0,0.00021369,2]
[375286921,1753617064718,-711.41,0.00021369,2]
[375286922,1753617064728,-460.0,0.00021369,2]
[375286923,1753617064738,-460.0,0.00021369,2]
[375286924,1753617064747,-460.0,0.00021369,2]
[375286925,1753617064758,-460.0,0.00021369,2]
[375286926,1753617064768,-460.0,0.00021369,2]
[375286927,1753617064777,-581.49,0.00021369,2]
[375286928,1753617064786,-460.0,0.00021369,2]
[375286929,1753617064796,-460.0,0.00021369,2]
[375286930,1753617064805,-460.0,0.00021369,2]
[375286931,1753617064815,-460.0,0.00021369,2]
[375286932,1753617064826,-460.0,0.00021369,2]
[375286933,1753617064836,-502.66,0.00021369,2]
[375286934,1753617064846,-475.73,0.00021369,2]
[375286935,1753617064855,-460.0,0.00021369,2]
[375286936,1753617064864,-460.0,0.00021369,2]
[375286937,1753617064873,-600.06,0.00021369,2]
[375286938,1753617064882,-460.0,0.00021369,2]
[375286939,1753617064891,-460.0,0.00021369,2]
[375286940,1753617064901,-460.0,0.00021369,2]
[375286941,1753617064910,-460.0,0.00021369,2]
[375286942,1753617064920,-460.0,0.00021369,2]
[375286943,1753617064929,-460.0,0.00021369,2]
[375286944,1753617064938,-460.0,0.00021369,2]
[375286945,1753617064947,-460.0,0.00021369,2]
[375286946,1753617064956,-460.0,0.00021369,2]
[375286947,1753617064965,-687.36,0.00021369,2]
[375286948,1753617064974,-460.0,0.00021369,2]
[375286949,1753617064983,-1494.55,0.00021369,2]
[375286950,1753617064991,-460.0,0.00021369,2]
[375286951,1753617065000,-460.0,0.00021369,2]
[375286952,1753617065010,-460.0,0.00021369,2]
[375286953,1753617065019,-460.0,0.00021369,2]
[375286954,1753617065028,-460.0,0.00021369,2]
[375286955,1753617065038,-460.0,0.00021369,2]
[375286956,1753617065047,-460.0,0.00021369,2]
[375286957,1753617065056,-460.0,0.00021369,2]
[375286958,1753617065066,-460.0,0.00021369,2]
[375286959,1753617065075,-460.0,0.00021369,2]
[375286960,1753617065085,-1433.41,0.00021369,2]
[375286961,1753617065096,-460.0,0.00021369,2]
[375286962,1753617065105,-460.0,0.00021369,2]
[375286963,1753617065114,-460.0,0.00021369,2]
[375286964,1753617065124,-460.0,0.00021369,2]
[375286965,1753617065134,-249.19275384,0.00021369,2]
[375286966,1753617065144,-3670.15,0.00021369,2]
[375286967,1753617065153,-667.98,0.00021369,2]
[375286968,1753617065163,-1015.9,0.00021369,2]
[375286969,1753617065172,-499.9,0.00021369,2]
[375286970,1753617065183,-2545.35,0.00021369,2]
[375286971,1753617065192,-532.42,0.00021369,2]
[375286972,1753617065201,-558.29635366,0.00021369,2]
[375286973,1753617065211,-612.11,0.00021369,2]
[375286974,1753617065219,-159.71401029,0.00021369,2]
[375286975,1753617065229,-1128.98,0.00021369,2]
[375286976,1753617065238,-564.54,0.00021369,2]
[375286977,1753617065247,-1594.92,0.00021369,2]
[375286978,1753617065256,-460.0,0.00021369,2]
[375286979,1753617065265,-813.34,0.00021369,2]
[375286980,1753617065275,-460.0,0.00021369,2]
[375286981,1753617065285,-460.0,0.00021369,2]
[375286982,1753617065294,-837.67,0.00021369,2]
[375286983,1753617065303,-460.0,0.00021369,2]
[375286984,1753617065314,-460.0,0.00021369,2]
[375286985,1753617065324,-460.0,0.00021369,2]
[375286986,1753617065333,-460.0,0.00021369,2]
[375286987,1753617065349,-460.0,0.00021369,2]
[375286988,1753617065358,-2138.03,0.00021369,2]
[375286989,1753617065369,-482.34,0.00021369,2]
[375286990,1753617065379,-460.0,0.00021369,2]
[375286991,1753617065389,-460.0,0.00021369,2]
[375286992,1753617065398,-460.0,0.00021369,2]
[375286993,1753617065408,-460.0,0.00021369,2]
[375286994,1753617065417,-460.0,0.00021369,2]
[375286995,1753617065427,-460.0,0.00021369,2]
[375286996,1753617065437,-460.0,0.00021369,2]
[375286997,1753617065445,-1503.06,0.00021369,2]
[375286998,1753617065455,-460.0,0.00021369,2]
[375286999,1753617065464,-460.0,0.00021369,2]
[375287000,1753617065473,-511.88,0.00021369,2]
[375287001,1753617065482,-1723.24,0.00021369,2]
[375287002,1753617065491,-460.0,0.00021369,2]
[375287003,1753617065501,-460.0,0.00021369,2]
[375287004,1753617065510,-460.0,0.00021369,2]
[375287005,1753617065520,-1570.77,0.00021369,2]
[375287006,1753617065594,-593.58,0.00021369,2]
[375287007,1753617065604,-1731.71,0.00021369,2]
[375287008,1753617065613,-460.0,0.00021369,2]
[375287009,1753617065623,-1221.5,0.00021369,2]
[375287010,1753617065632,-460.0,0.00021369,2]
[375287011,1753617065641,-500.0,0.00021373,2]
[375287012,1753617065651,-3942.302754,0.00021408,2]
[375287013,1753617065660,-2158.0,0.00021463,2]
[375287014,1753617065669,-421.197,0.00021463,2]
[375287015,1753617065678,-969.0,0.00021463,2]
[375287016,1753617065688,-150.0,0.00021463,2]
[375287017,1753617065697,-4088.1679559,0.00021463,2]
[375287018,1753617065706,-4239.43017027,0.00021518,2]
[375287019,1753617065716,-151.0,0.00021518,2]
[375287020,1753617065725,-2463.31883367,0.00021555,5]
[375287021,1753617065734,-209.58,0.0002157,2]
[375287022,1753617065744,-4396.28908657,0.00021573,2]
[375287023,1753617065753,-4558.95178277,0.00021628,2]
[375287024,1753617065762,-460.0,0.00021643,2]
[375287025,1753617065772,-968.52,0.00021643,2]
[375287026,1753617065782,-460.0,0.00021643,2]
[375287027,1753617065795,-711.41,0.00021643,2]
[375287028,1753617065804,-460.0,0.00021643,2]
[375287029,1753617065814,-460.0,0.00021643,2]
[375287030,1753617065824,-460.0,0.00021643,2]
[375287031,1753617065834,-460.0,0.00021643,2]
[375287032,1753617065843,-460.0,0.00021643,2]
[375287033,1753617065852,-581.49,0.00021643,2]
[375287034,1753617065862,-460.0,0.00021643,2]
[375287035,1753617065871,-460.0,0.00021643,2]
[375287036,1753617065880,-269.46138922,0.00021643,2]
[375287037,1753617065889,-460.0,0.00021643,2]
[375287038,1753617065899,-460.0,0.00021643,2]
[375287039,1753617065908,-502.66,0.00021643,2]
[375287040,1753617065917,-268.594645,0.00021643,2]
[375287041,1753617065928,-151.0,0.00021643,2]
[375287042,1753617065937,-475.73,0.00021643,2]
[375287043,1753617065947,-300.59397074,0.00021643,2]
[375287044,1753617065958,-460.0,0.00021643,2]
[375287045,1753617065967,-460.0,0.00021643,2]
[375287046,1753617065976,-369.3867747,0.00021643,2]
[375287047,1753617065986,-460.0,0.00021643,2]
[375287048,1753617065995,-466.74365477,0.00021643,2]
[375287049,1753617066004,-460.0,0.00021643,2]
[375287050,1753617066013,-313.86264947,0.00021643,2]
[375287051,1753617066023,-460.0,0.00021643,2]
[375287052,1753617066033,-460.0,0.00021643,2]
[375287053,1753617066042,-460.0,0.00021643,2]
[375287054,1753617066051,-687.36,0.00021643,2]
[375287055,1753617066061,-460.0,0.00021643,2]
[375287056,1753617066070,-1494.55,0.00021643,2]
[375287057,1753617066079,-460.0,0.00021643,2]
[375287058,1753617066089,-460.0,0.00021643,2]
[375287059,1753617066098,-460.0,0.00021643,2]
[375287060,1753617066107,-460.0,0.00021643,2]
[375287061,1753617066117,-460.0,0.00021643,2]
[375287062,1753617066127,-460.0,0.00021643,2]
[375287063,1753617066138,-460.0,0.00021643,2]
[375287064,1753617066147,-460.0,0.00021643,2]
[375287065,1753617066158,-460.0,0.00021643,2]
[375287066,1753617066167,-460.0,0.00021643,2]
[375287067,1753617066177,-1433.41,0.00021643,2]
[375287068,1753617066187,-460.0,0.00021643,2]
[375287069,1753617066197,-460.0,0.00021643,2]
[375287070,1753617066207,-460.0,0.00021643,2]
[375287071,1753617066216,-3670.15,0.00021643,2]
[375287072,1753617066225,-667.98,0.00021643,2]
[375287073,1753617066235,-1015.9,0.00021643,2]
[375287074,1753617066244,-499.9,0.00021643,2]
[375287075,1753617066254,-2545.35,0.00021643,2]
[375287076,1753617066263,-532.42,0.00021643,2]
[375287077,1753617066273,-612.11,0.00021643,2]
[375287078,1753617066282,-1128.98,0.00021643,2]
[375287079,1753617066291,-564.54,0.00021643,2]
[375287080,1753617066301,-460.0,0.00021643,2]
[375287081,1753617066310,-1594.92,0.00021643,2]
[375287082,1753617066320,-813.34,0.00021643,2]
[375287083,1753617066330,-460.0,0.00021643,2]
[375287084,1753617066340,-460.0,0.00021643,2]
[375287085,1753617066354,-837.67,0.00021643,2]
[375287086,1753617066363,-302.01,0.00021643,2]
[375287087,1753617066373,-304.14765728,0.00021643,2]
[375287088,1753617066383,-460.0,0.00021643,2]
[375287089,1753617066392,-460.0,0.00021643,2]
[375287090,1753617066401,-460.0,0.00021643,2]
[375287091,1753617066410,-2138.03,0.00021643,2]
[375287092,1753617066420,-482.34,0.00021643,2]
[375287093,1753617066429,-460.0,0.00021643,2]
[375287094,1753617066440,-460.0,0.00021643,2]
[375287095,1753617066449,-460.0,0.00021643,2]
[375287096,1753617066459,-460.0,0.00021643,2]
[375287097,1753617066468,-460.0,0.00021643,2]
[375287098,1753617066478,-460.0,0.00021643,2]
[375287099,1753617066487,-460.0,0.00021643,2]
[375287100,1753617066496,-1503.06,0.00021643,2]
[375287101,1753617066506,-460.0,0.00021643,2]
[375287102,1753617066516,-460.0,0.00021643,2]
[375287103,1753617066525,-511.88,0.00021643,2]
[375287104,1753617066534,-1723.24,0.00021643,2]
[375287105,1753617066545,-460.0,0.00021643,2]
[375287106,1753617066554,-460.0,0.00021643,2]
[375287107,1753617066563,-1570.77,0.00021643,2]
[375287108,1753617066574,-593.58,0.00021643,2]
[375287109,1753617066583,-1731.71,0.00021643,2]
[375287110,1753617066593,-466.48867009,0.00021643,2]
[375287111,1753617066602,-1221.5,0.00021643,2]
[375287112,1753617066611,-460.0,0.00021644,2]
[375287113,1753617066621,-4727.63299873,0.00021683,2]
[375287114,1753617066631,-4902.55541968,0.00021738,2]
[375287115,1753617066640,-2463.31883367,0.00021762,5]
[375287116,1753617066650,-338.66364105,0.00021788,2]
[375287117,1753617066660,-1158.08855282,0.00021793,2]
[375287118,1753617066673,-12210.03399345,0.00021817,2]
[375287119,1753617066757,-25000.0,0.00021901,2]
[375287120,1753617066766,-460.0,0.00021917,2]
[375287121,1753617066776,-968.52,0.00021917,2]
[375287122,1753617066786,-460.0,0.00021917,2]
[375287123,1753617066795,-711.41,0.00021917,2]
[375287124,1753617066806,-460.0,0.00021917,2]
[375287125,1753617066815,-460.0,0.00021917,2]
[375287126,1753617066826,-460.0,0.00021917,2]
[375287127,1753617066836,-460.0,0.00021917,2]
[375287128,1753617066845,-581.49,0.00021917,2]
[375287129,1753617066855,-460.0,0.00021917,2]
[375287130,1753617066865,-460.0,0.00021917,2]
[375287131,1753617066874,-460.0,0.00021917,2]
[375287132,1753617066884,-502.66,0.00021917,2]
[375287133,1753617066893,-460.0,0.00021917,2]
[375287134,1753617066902,-475.73,0.00021917,2]
[375287135,1753617066911,-460.0,0.00021917,2]
[375287136,1753617066920,-460.0,0.00021917,2]
[375287137,1753617066929,-460.0,0.00021917,2]
[375287138,1753617066939,-460.0,0.00021917,2]
[375287139,1753617066948,-460.0,0.00021917,2]
[375287140,1753617066958,-460.0,0.00021917,2]
[375287141,1753617066968,-407.46112511,0.00021917,2]
[375287142,1753617066978,-687.36,0.00021917,2]
[375287143,1753617066987,-460.0,0.00021917,2]
[375287144,1753617066996,-1494.55,0.00021917,2]
[375287145,1753617067006,-460.0,0.00021917,2]
[375287146,1753617067015,-460.0,0.00021917,2]
[375287147,1753617067024,-493.43,0.00021917,2]
[375287148,1753617067033,-460.0,0.00021917,2]